[Event "31st MPL National U18 Chess-ch 2022"]
[Site "Pollachi"]
[Date "2022.04.21"]
[Round "8.7"]
[White "Dhruva Thota"]
[Black "Ayush Sharma"]
[Result "1/2-1/2"]
[ECO "B96"]
[WhiteElo "1525"]
[BlackElo "2302"]
[Annotator "TA"]
[PlyCount "71"]
[EventDate "2022.04.18"]
[EventCountry "IND"]
[SourceTitle "playchess.com"]
[Source "ChessBase"]
[SourceQuality "1"]
[TimeControl "5400+30"]

{[%evp 18,71,0,-19,-22,-19,-2,-32,-2,-17,0,0,3,12,14,0,0,-6,-36,-34,-37,-49,-45,-40,-41,-37,-30,-31,-22,-50,-51,-36,-45,-37,-54,-135,-87,-110,-115,-222,-214,-227,-232,-244,-37,-37,-28,-39,-44,-35,-37,-31,-32,-32,0,0]} 1. e4 {[%emt 0:00:18]} c5 {[%emt 0:00:44]} 2. Nf3 {[%emt 0:00:42]} d6 {[%emt 0:00:47]} 3. d4 {[%emt 0:00:25]} cxd4 {[%emt 0:00:04]} 4. Nxd4 {[%emt 0:00:07]} Nf6 {[%emt 0:00:03]} 5. Nc3 {[%emt 0:00:07]} a6 {[%emt 0:00:04]} 6. Bg5 {[%emt 0:00:07]} e6 {[%emt 0:00:05]} 7. f4 {[%emt 0:00:05]} Nbd7 {[%emt 0:01:31]} 8. Qf3 {[%emt 0:00:07]} Qc7 {[%emt 0:00:02]} 9. O-O-O {[%emt 0:00:08]} b5 {[%emt 0:00:01][%cal Bb7b5,Bb5b4][%mdl 32]} 10. g4 {[%emt 0:00:07]} b4 {[%emt 0:00:29] B96: Sicilian Najdorf: 6 Bg5 e6 7 f4, lines other than 7...Qb6 and 7...Be7.} 11. Nce2 {[%emt 0:06:51]} Bb7 {[%emt 0:00:23]} 12. Ng3 {[%emt 0:02:09]} O-O-O {[%emt 0:17:39] Black is slightly better.} 13. Bd3 {[%emt 0:04:36]} Be7 {[%emt 0:03:50] [#]} 14. Qe2 $146 {[%emt 0:05:42]} ({Predecessor:} 14. Nh5 Nc5 15. Bxf6 gxf6 16. Rhe1 d5 17. e5 Ne4 18. exf6 Nxf6 19. Ng3 Bd6 20. Rf1 Kb8 21. g5 Nd7 22. Kb1 Nb6 23. h4 Rc8 {½-½ (23) L'Ami,E (2281)-Jens,J (2270) Utrecht 2001}) 14... Nc5 {[%emt 0:10:01]} 15. Kb1 {[%emt 0:00:53]} Kb8 {[%emt 0:09:07]} 16. Rhe1 {[%emt 0:05:09]} h6 {[%emt 0:00:50]} 17. Bh4 {[%emt 0:06:33]} g5 {[%emt 0:00:24]} 18. fxg5 {[%emt 0:01:04]} Nfd7 {[%emt 0:00:01]} 19. Nf3 {[%emt 0:03:23][%cal Og5g6]} hxg5 {[%emt 0:01:57]} 20. Bxg5 {[%emt 0:01:14]} Bxg5 {[%emt 0:00:12]} 21. Nxg5 {[%emt 0:00:09]} Ne5 {[%emt 0:00:01]} 22. Nh5 {[%emt 0:04:05]} f6 $36 {[%emt 0:16:21][%mdl 2112] [#] Deflection, Decoy. Black has good play.} 23. Nxf6 {[%emt 0:22:33]} Qg7 {[%emt 0:02:03][%csl LRf6,LRg5]} 24. Ngh7 {[%emt 0:01:14]} Rxh7 {[%emt 0:01:14]} 25. Nxh7 {[%emt 0:00:41]} Qxh7 {[%emt 0:00:01]} 26. Qg2 {[%emt 0:04:27]} ({Better is} 26. Rg1 $15) 26... Rh8 {[%emt 0:02:32]} (26... Qg7 $142 {Threatens to win with ...Na4.} 27. Qf2 Qxg4) 27. Re2 {[%emt 0:12:54]} Qg7 {[%emt 0:07:26] [#] ...Na4 is the strong threat.} 28. b3 {[%emt 0:09:45] Inhibits Na4.} (28. Qg1 $17 {might work better.}) 28... Qxg4 $19 {[%emt 0:03:51]} ({Don't do} 28... Nxg4 29. h3 $18) 29. Qxg4 {[%emt 0:03:57]} Nxg4 {[%emt 0:00:35] Pair of Knights!} 30. Kb2 {[%emt 0:01:31]} Rxh2 $2 {[%emt 0:07:12]} (30... Ne5 $19 {Strongly threatening ...Rh3.} 31. a3 a5 32. axb4 axb4) 31. Rxh2 $15 {[%emt 0:00:04]} Nxh2 {[%emt 0:00:13]} 32. Be2 $1 {[%emt 0:01:06]} Bxe4 {[%emt 0:01:05]} ({Resist} 32... Nxe4 33. Rh1 $16) 33. Rxd6 {[%emt 0:01:00] aiming for Rd8+.} Kc7 {[%emt 0:02:15] Inhibits Rd8.} 34. Rd4 {[%emt 0:00:58]} a5 {[%emt 0:00:50]} 35. c3 {[%emt 0:00:38]} Nf3 {[%emt 0:02:16]} 36. Rc4 $1 {[%emt 0:03:41] Weighted Error Value: White=0.15 (very precise) /Black=0.18 (very precise)} 1/2-1/2

[Event "31st MPL National U18 Chess-ch 2022"]
[Site "Pollachi"]
[Date "2022.04.21"]
[Round "8.8"]
[White "Apoorv Kamble"]
[Black "Ayushh Ravikumar"]
[Result "1-0"]
[ECO "B42"]
[WhiteElo "1679"]
[BlackElo "2269"]
[Annotator "TA"]
[PlyCount "101"]
[EventDate "2022.04.18"]
[EventCountry "IND"]
[SourceTitle "playchess.com"]
[Source "ChessBase"]
[SourceQuality "1"]
[TimeControl "5400+30"]

{[%evp 14,101,47,25,35,19,25,29,28,24,24,34,36,35,31,20,23,0,75,76,108,110,111,105,111,97,147,69,139,115,177,171,262,231,306,141,408,389,383,393,362,378,368,383,501,487,636,634,677,506,1114,1106,1639,1623,1506,1313,1532,1060,1827,1474,29986,29987,29987,29988,29988,29989,29989,29990,29990,29991,29991,29992,29992,29993,29993,29994,29994,29993,29993,29994,29994,29995,29995,29996,29996,29997,29997,29998,29998,29999]} 1. e4 {[%emt 0:00:01]} c5 {[%emt 0:01:49]} 2. Nf3 {[%emt 1:31:29]} e6 {[%emt 0:00:24]} 3. d4 {[%emt 0:00:00]} cxd4 {[%emt 0:00:10]} 4. Nxd4 {[%emt 0:00:00]} a6 {[%emt 0:00:44]} 5. Bd3 {[%emt 0:00:00]} Qc7 {[%emt 0:00:10]} 6. O-O {[%emt 0:00:00]} Nc6 {[%emt 0:01:25]} 7. Nxc6 {[%emt 0:00:00]} dxc6 {[%emt 0:02:51]} 8. f4 {[%emt 0:03:00]} b5 {[%emt 0:12:35] [#] B42: Sicilian: Kan Variation: 5 Bd3.} 9. c4 $146 {[%emt 0:00:00]} ({Predecessor:} 9. Be3 Nf6 10. Nd2 Bb7 11. c4 Rd8 12. Qe2 Ng4 13. Nf3 Nxe3 14. Qxe3 Qd6 15. Rfd1 Qc5 16. Qxc5 Bxc5+ 17. Kf1 Ke7 {½-½ (17) Patavia,A (2099)-Ferri,S (2083) Taranto 2002}) 9... e5 {[%emt 1:14:52]} 10. Qc2 {[%emt 0:00:00]} Bd6 {[%emt 0:00:30][%cal Re5f4] White has an edge.} 11. c5 {[%emt 0:00:00]} Be7 {[%emt 0:00:00]} 12. f5 {[%emt 0:00:00]} Nf6 {[%emt 0:00:00]} 13. Kh1 {[%emt 0:02:30]} O-O {[%emt 0:00:00]} 14. Be3 {[%emt 0:00:00]} Rd8 {[%emt 0:00:00]} 15. Nd2 {[%emt 0:00:00]} Bd7 {[%emt 0:00:00]} (15... Ng4 $11 16. Bg1 Qd7) 16. Be2 $16 {[%emt 0:00:00]} Be8 {[%emt 0:03:00]} 17. g4 $1 {[%emt 0:00:00][%cal Bg2g4,Bg4g5][%mdl 32]} Nd7 {[%emt 0:00:00][%cal Oe7c5]} 18. Nf3 $1 {[%emt 0:00:00]} f6 {[%emt 0:00:00]} 19. Rg1 {[%emt 0:00:00] &Bianco is more active.} Bf7 {[%emt 0:00:00]} (19... Kh8 $142) 20. h4 {[%emt 0:00:00]} (20. g5 $1 $16) 20... Nf8 {[%emt 0:02:00]} (20... Qa5 $14) 21. g5 {[%emt 0:00:00]} Bh5 {[%emt 0:00:00]} (21... a5 $16) 22. Rg3 $18 {[%emt 0:00:00]} Ra7 {[%emt 0:00:00]} (22... Nd7 {was called for.} 23. gxf6 Nxf6) 23. Rag1 {[%emt 0:00:00]} Qa5 {[%emt 0:01:30] [#]} 24. b3 {[%emt 0:00:00]} (24. Nxe5 $1 $18 {[%mdl 512] has better winning chances.} Qc7 {[#]} 25. g6 $1 (25. Bxh5 Qxe5 26. Rf3 Kh8 $18) 25... Bxg6 26. Nd3 (26. Nxg6 hxg6 27. Bh5 Qd7 $18)) 24... Qb4 $2 {[%emt 0:00:00][%mdl 8192] [#] Loses the game.} (24... Rad7 $16) 25. Nxe5 $1 {[%emt 0:00:00][%mdl 512]} Bxe2 {[%emt 0:01:00]} 26. Nxc6 {[%emt 0:00:00]} Bd3 {[%emt 0:00:00]} 27. Nxb4 {[%emt 0:00:00]} Bxc2 {[%emt 0:00:00]} 28. Nxc2 {[%emt 0:00:00]} Kf7 {[%emt 0:00:00]} 29. Nb4 {[%emt 0:00:00]} Rc8 {[%emt 0:02:00] Inhibits Nc6.} 30. Nd5 {[%emt 0:00:00] Strongly threatening gxf6.} fxg5 {[%emt 0:00:00]} 31. hxg5 {[%emt 0:00:00]} Nd7 {[%emt 0:00:11]} (31... Rc6 $142 32. e5 Ke8) 32. c6 Nc5 {[%emt 0:01:19]} 33. Nxe7 {[%emt 0:00:00]} Rxe7 {[%emt 0:00:00]} 34. Bxc5 {[%emt 0:10:30]} Rxe4 {[%emt 0:00:00]} 35. b4 {[%emt 0:00:00] Rd1 is the strong threat.} Rxc6 {[%emt 0:00:04]} 36. Rd1 {[%emt 0:00:00] Intending Rd7+ and mate.} Re5 {[%emt 0:01:56]} 37. Rd7+ {[%emt 0:00:00] White mates.} Ke8 {[%emt 0:00:00]} 38. Rgd3 {[%emt 0:00:00]} Rcxc5 {[%emt 0:00:26] KRR-KRR} 39. Rd8+ {[%emt 0:00:00]} Kf7 {[%emt 0:00:07]} 40. R3d7+ {[%emt 0:00:00]} Re7 {[%emt 0:00:01]} 41. bxc5 {[%emt 0:00:00]} g6 {[%emt 0:00:14]} 42. f6 {[%emt 0:00:00][%csl Gf6][%cal Rd7e7]} Rxd7 {[%emt 0:00:05]} 43. Rxd7+ {[%emt 0:00:00] KR-KP} Ke6 {[%emt 0:00:07]} 44. c6 {[%emt 0:05:00]} b4 {[%emt 0:00:05]} 45. Rd1 {[%emt 0:00:00]} b3 {[%emt 0:00:04]} 46. c7 {[%emt 0:00:00]} bxa2 {[%emt 0:00:07]} 47. c8=Q+ {[%emt 0:01:30]} Ke5 {[%emt 0:04:14]} 48. Qc5+ {[%emt 0:00:00]} Kf4 {[%emt 0:00:00]} 49. Rd4+ {[%emt 0:00:00]} Kg3 {[%emt 0:00:00]} 50. Qc3+ {[%emt 0:00:00]} Kf2 {[%emt 0:00:00]} 51. Rd2+ {[%emt 0:00:00] Weighted Error Value: White=0.20 (precise) /Black=0.79} 1-0

[Event "31st MPL National U18 Chess-ch 2022"]
[Site "Pollachi"]
[Date "2022.04.21"]
[Round "8.9"]
[White "Manish Anto Cristiano F"]
[Black "Md Bashiq Imrose"]
[Result "1-0"]
[ECO "B36"]
[WhiteElo "2236"]
[BlackElo "1671"]
[Annotator "TA"]
[PlyCount "59"]
[EventDate "2022.04.18"]
[EventCountry "IND"]
[SourceTitle "playchess.com"]
[Source "ChessBase"]
[SourceQuality "1"]
[TimeControl "5400+30"]

{[%evp 20,59,37,40,41,46,47,25,60,54,45,44,79,93,172,172,233,227,276,266,262,262,268,264,276,259,435,435,425,433,676,581,880,846,1488,1444,1750,1764,1746,1691,1287,978]} 1. e4 {[%emt 1:31:00]} c5 {[%emt 1:31:00]} 2. Nf3 {[%emt 0:00:30]} g6 3. d4 {[%emt 0:00:30]} cxd4 {[%emt 0:01:00]} 4. Nxd4 {[%emt 0:00:30]} Nc6 {[%emt 0:00:30]} 5. c4 {[%emt 0:00:30]} Nf6 {[%emt 0:00:30]} 6. Nc3 {[%emt 0:00:30]} d6 {[%emt 0:00:30]} 7. f3 Nxd4 {[%emt 0:00:30]} 8. Qxd4 {[%emt 0:01:00]} Bg7 {[%emt 0:00:30]} 9. Be3 {[%emt 0:00:30]} O-O {[%emt 0:00:30]} 10. Qd2 {[%emt 0:00:30]} Qa5 {[%emt 0:00:30]} 11. Rc1 {[%emt 0:00:30]} a6 {[%emt 0:00:30] B36: Sicilian: Maroczy Bind: Gurgenidze System.} 12. b3 {[%emt 0:00:30]} Bd7 {[%emt 0:00:30]} 13. g4 {[%emt 0:00:30][%cal Bg2g4,Bg4g5][%mdl 32] [#]} Bc6 $146 {[%emt 0:00:30] White has an edge.} ({Predecessor:} 13... b5 14. Nd5 Qxd2+ 15. Kxd2 Nxd5 16. cxd5 Rfc8 17. Bd3 Kf8 18. h4 Bb2 19. Rxc8+ Rxc8 {½-½ (30) Durarbayli,V (2635)-Guseinov,G (2610) Baku 2015}) 14. Nd5 {[%emt 0:00:30]} Qxd2+ {[%emt 0:00:30]} 15. Kxd2 {[%emt 0:00:30]} Bxd5 {[%emt 0:00:30]} 16. cxd5 {[%emt 0:00:30]} Rac8 {[%emt 0:00:30]} (16... e6 $16) 17. Bh3 $18 {[%emt 0:00:30] [#] Threatens to win with Rxc8.} Nd7 {[%emt 0:00:30]} (17... Rce8 $142 18. Rc7 b5) 18. g5 {[%emt 0:00:30]} Rxc1 {[%emt 0:00:30]} 19. Rxc1 {[%emt 0:00:30]} (19. Kxc1 Nc5 $14) 19... Nc5 {[%emt 0:00:30] [#]} 20. b4 {[%emt 0:00:30]} ({Less strong is} 20. Bxc5 dxc5 21. Rxc5 Be5 $16) 20... Na4 {[%emt 0:00:30]} 21. Rc7 {[%emt 0:00:30][%csl LRb7,LRe7]} b5 {[%emt 0:00:30]} 22. Kc2 {[%emt 0:00:30]} ({But not} 22. Rxe7 $6 Bc3+ 23. Kc2 Bxb4 $18) 22... Ra8 $2 {[%emt 0:00:30]} (22... Nb2 {was necessary.} 23. Bc1 Nc4 24. Rxe7 Bd4) 23. Rc8+ {[%emt 0:00:30] White is clearly winning.} Rxc8+ {[%emt 0:00:30]} 24. Bxc8 {[%emt 0:00:30][%mdl 4096] Endgame KBB-KBN} Bc3 {[%emt 0:00:30]} (24... Nc3 $142 25. Bxa6 Be5) 25. Bd2 {[%emt 0:00:30]} Be5 {[%emt 0:00:30]} 26. Bxa6 {[%emt 0:00:30]} Bxh2 {[%emt 0:00:30]} 27. Bxb5 {[%emt 0:00:30] This bishop pair is nice.} Nb6 {[%emt 0:00:30]} 28. Be3 {[%emt 0:00:30]} Na8 {[%emt 0:00:30]} 29. Bc6 {[%emt 0:00:30]} Nc7 {[%emt 0:00:30]} 30. b5 {[%emt 0:00:30] White took control after the opening.  Weighted Error Value: White=0.01 (flawless) /Black=0.54} 1-0

[Event "31st MPL National U18 Chess-ch 2022"]
[Site "Pollachi"]
[Date "2022.04.21"]
[Round "8.10"]
[White "Jani Kushal R"]
[Black "Midilesh MS"]
[Result "1-0"]
[ECO "A30"]
[WhiteElo "1746"]
[BlackElo "1470"]
[Annotator "NA RC COMBH"]
[PlyCount "85"]
[EventDate "2022.04.18"]
[EventCountry "IND"]
[SourceTitle "playchess.com"]
[Source "ChessBase"]
[SourceQuality "1"]
[TimeControl "5400+30"]

1. Nf3 {[%emt 1:31:00]} Nf6 {[%emt 0:00:13]} 2. g3 {[%emt 0:00:30]} d5 {[%emt 1:31:17]} 3. Bg2 {[%emt 0:00:30]} c5 {[%emt 0:00:00]} 4. O-O Nc6 {[%emt 0:01:00]} 5. d4 {[%emt 0:00:00]} Bf5 {[%emt 0:00:00]} 6. c4 e6 {[%emt 0:00:00]} 7. cxd5 Nxd5 {[%emt 0:00:00]} 8. Nc3 Nxc3 {[%emt 0:02:00]} 9. bxc3 {[%emt 0:03:00]} Be4 {[%emt 0:00:30]} 10. Qa4 {[%emt 0:00:30]} Qa5 {[%emt 0:00:00]} 11. Qb3 b5 {[%emt 0:01:00]} 12. a4 {[%emt 0:01:00]} b4 {[%emt 0:00:30]} 13. cxb4 {[%emt 0:00:30]} cxb4 {[%emt 0:00:30]} 14. Qe3 {[%emt 0:00:30]} Qd5 {[%emt 0:00:30]} 15. Bb2 {[%emt 0:00:30]} Na5 {[%emt 0:00:30]} 16. Ne1 {[%emt 0:00:00]} Bxg2 {[%emt 0:00:00]} 17. Nxg2 {[%emt 0:00:00]} Nc4 {[%emt 0:01:00]} 18. Qc1 {[%emt 0:01:30]} Nxb2 {[%emt 0:00:00]} 19. Qxb2 {[%emt 0:00:00]} a5 {[%emt 0:00:00]} 20. e4 {[%emt 0:00:00]} Qxe4 {[%emt 0:00:00]} 21. Rfe1 {[%emt 0:00:00]} Qb7 {[%emt 0:00:31]} 22. d5 {[%emt 0:00:00]} O-O-O {[%emt 0:01:27]} 23. dxe6 {[%emt 0:02:30]} fxe6 {[%emt 0:00:02]} 24. Nf4 {[%emt 0:00:00]} Kb8 {[%emt 0:00:54]} 25. Nxe6 {[%emt 0:00:00]} Rd5 {[%emt 0:00:31]} 26. Nf4 {[%emt 0:00:00]} Rf5 {[%emt 0:00:32]} 27. Re8+ {[%emt 0:00:00]} Ka7 {[%emt 0:00:03]} 28. Rc1 {[%emt 0:00:00]} Qb6 {[%emt 0:00:58]} 29. Rcc8 {[%emt 0:00:00]} Qb7 {[%emt 0:00:31]} 30. Qd4+ {[%emt 0:00:00]} Bc5 {[%emt 0:00:28]} 31. Rxc5 {[%emt 0:00:00]} Rxe8 {[%emt 0:00:31]} 32. Rc7+ {[%emt 0:00:00]} Ka8 {[%emt 0:00:29]} 33. Rxb7 {[%emt 0:00:00]} Re1+ {[%emt 0:00:32]} 34. Kg2 {[%emt 0:00:00]} Kxb7 {[%emt 0:00:07]} 35. Qd7+ {[%emt 0:00:00]} Kb8 {[%emt 0:00:39]} 36. Qxf5 {[%emt 0:06:30]} b3 {[%emt 0:00:08]} 37. Qb5+ {[%emt 0:00:00]} Kc8 {[%emt 0:00:04]} 38. Qxb3 {[%emt 0:00:00]} Rc1 {[%emt 0:00:15]} 39. Nd5 {[%emt 0:00:00]} Kd7 {[%emt 0:00:19]} 40. Qe3 {[%emt 0:00:00]} Ra1 {[%emt 0:01:06]} 41. Nb6+ {[%emt 0:00:00]} Kc6 {[%emt 0:00:15]} 42. Qc3+ {[%emt 0:03:00]} Kxb6 {[%emt 0:02:08]} 43. Qxa1 {[%emt 0:00:00]} 1-0

[Event "31st MPL National U18 Chess-ch 2022"]
[Site "Pollachi"]
[Date "2022.04.22"]
[Round "9.1"]
[White "Soham Kamotra"]
[Black "Vignesh B"]
[Result "1-0"]
[ECO "A43"]
[WhiteElo "2229"]
[BlackElo "2249"]
[Annotator "TA"]
[PlyCount "119"]
[EventDate "2022.04.18"]
[EventCountry "IND"]
[SourceTitle "playchess.com"]
[Source "ChessBase"]
[SourceQuality "1"]
[TimeControl "5400+30"]

{[%evp 11,119,40,43,41,45,29,53,39,28,31,43,15,40,37,35,37,39,34,41,41,41,21,45,60,110,98,138,89,91,103,229,228,237,203,198,164,197,172,158,164,187,178,176,155,143,157,231,236,226,214,214,215,214,209,215,215,467,467,467,467,467,467,467,467,467,467,467,467,467,467,467,467,467,467,467,467,467,467,467,467,1416,1315,1248,1166,1285,1047,1468,1385,29975,29976,29976,29977,2420,6744,29983,29984,29979,29970,5872,4425,29980,29981,6993,3772,29985,29986,29986,29987,29986,29986]} 1. d4 {[%emt 1:31:00]} Nf6 {[%emt 0:02:20]} 2. Nf3 {[%emt 0:00:00]} c5 {[%emt 0:00:29]} 3. d5 {[%emt 0:00:00]} e6 {[%emt 0:00:43]} 4. Nc3 {[%emt 0:00:00]} d6 {[%emt 0:03:31]} 5. e4 {[%emt 0:00:00]} exd5 {[%emt 0:01:43]} 6. exd5 {[%emt 0:00:00]} Be7 {[%emt 0:00:05]} 7. h3 {[%emt 0:03:00] A43: Schmid Benoni.} O-O {[%emt 0:02:32]} 8. Bd3 {[%emt 0:00:00]} Nbd7 {[%emt 0:00:46]} 9. Bf4 {[%emt 0:00:00] White is slightly better.} Nb6 {[%emt 0:01:14]} 10. O-O {[%emt 0:00:00] [#]} h6 $146 {[%emt 0:06:43]} ({Predecessor:} 10... Kh8 11. Be2 a6 12. Bg5 h6 13. Bh4 Bf5 14. Bd3 Qd7 15. Bxf6 Bxf6 16. Ne4 Bxe4 17. Bxe4 Bxb2 {0-1 (40) Naserpour,Y (1704)-Rahbari,N (1296) Chess.com INT 2021}) 11. Qd2 {[%emt 0:00:00]} c4 {[%emt 0:06:47]} (11... Nfxd5 {keeps more tension.} 12. Nxd5 Nxd5 13. Bxh6 Nb4) 12. Be2 $36 {[%emt 0:00:00][%mdl 2048] White is more active.} Bf5 {[%emt 0:00:06]} 13. Nd4 {[%emt 0:00:00]} Bg6 {[%emt 0:36:55]} 14. Bf3 {[%emt 0:00:00]} Re8 {[%emt 0:01:35]} 15. Rfe1 {[%emt 0:00:00]} a6 {[%emt 0:04:35]} 16. g4 {[%emt 0:00:00][%cal Bg2g4,Bg4g5][%mdl 32]} Qd7 {[%emt 0:09:44]} 17. a4 {[%emt 0:00:00][%cal Ba2a4,Ba4a5][%mdl 32]} Rad8 {[%emt 0:02:36]} (17... Qc7 $14) 18. a5 $16 {[%emt 0:00:00]} Nc8 {[%emt 0:01:58]} 19. Bg2 {[%emt 0:00:00] &Bianco is much more active. The black rooks are badly placed.} (19. Ra4 $142) 19... Bf8 {[%emt 0:01:11]} 20. Bg3 {[%emt 0:00:00]} h5 {[%emt 0:03:40] A mistake that costs the game.} (20... Rxe1+ $16 {was worth a try.} 21. Rxe1 Qc7) 21. g5 $18 {[%emt 0:00:00]} Nh7 {[%emt 0:00:05]} 22. h4 {[%emt 0:00:00]} Ne7 {[%emt 0:02:07]} 23. Nce2 {[%emt 0:00:00]} Nf5 {[%emt 0:00:57]} 24. Nxf5 {[%emt 0:00:00]} Bxf5 {[%emt 0:00:35] [#]} 25. Kh2 $1 {[%emt 0:00:00]} g6 {[%emt 0:01:21]} 26. Nd4 {[%emt 0:00:00]} Bg7 {[%emt 0:00:04]} 27. Nxf5 {[%emt 0:00:00]} Qxf5 {[%emt 0:01:32]} 28. c3 {[%emt 0:00:00]} Be5 {[%emt 0:02:50]} (28... Qd7 $16 29. Re2 Nf8) 29. f4 {[%emt 0:00:00]} Bg7 {[%emt 0:01:33]} 30. Bh3 {[%emt 0:00:00]} Qd3 {[%emt 0:00:09]} 31. Qxd3 {[%emt 0:00:00]} cxd3 {[%emt 0:00:02]} 32. Rxe8+ {[%emt 0:00:00]} Rxe8 {[%emt 0:00:01]} 33. Re1 {[%emt 0:00:00]} Rxe1 {[%emt 0:04:24]} (33... Re2+ $2 34. Rxe2 dxe2 35. Bc8 $18) (33... Kf8 34. Rxe8+ Kxe8) 34. Bxe1 {[%emt 0:00:00][%mdl 4096] [#] Endgame aiming for Bc8. KBB-KBN} f5 {[%emt 0:00:01]} 35. Bf1 {[%emt 0:00:00]} Kf7 {[%emt 0:01:10]} 36. Bxd3 {[%emt 0:00:00]} Nf8 {[%emt 0:00:16]} 37. Kg2 {[%emt 0:00:00]} Nd7 {[%emt 0:01:06]} 38. b4 {[%emt 0:00:00]} Ke7 {[%emt 0:00:30]} 39. Kf3 {[%emt 0:00:00]} Kd8 {[%emt 0:00:57]} 40. Bc4 {[%emt 0:00:00]} Kc7 {[%emt 0:00:50]} 41. Ke3 {[%emt 0:00:00]} Nf8 {[%emt 0:00:42]} 42. Kd3 {[%emt 0:00:00]} Nd7 {[%emt 0:00:11]} 43. Bf2 {[%emt 0:00:00]} Bf8 {[%emt 0:00:48]} 44. Bb3 {[%emt 0:00:00]} Be7 {[%emt 0:00:22]} 45. Ba4 {[%emt 0:00:00] Threatens to win with c4.} Nf8 {[%emt 0:00:33]} (45... Bd8 $142 46. Bb6+ Nxb6 47. axb6+ Kc8) 46. Bb6+ {[%emt 0:00:00]} Kc8 {[%emt 0:00:21]} 47. Be8 {[%emt 0:00:00]} Bd8 {[%emt 0:00:40]} 48. Bd4 {[%emt 0:00:00]} Bc7 {[%emt 0:00:25]} 49. Bf6 {[%emt 0:00:00]} b6 {[%emt 0:00:41]} 50. axb6 {[%emt 0:00:00]} Bxb6 {[%emt 0:00:05]} 51. Be7 {[%emt 0:00:00][%csl LRd6,LRf8]} Nd7 {[%emt 0:00:05]} 52. Bxg6 {[%emt 0:00:00]} Bf2 {[%emt 0:00:06]} 53. Bxf5 {[%emt 0:00:00]} Bxh4 {[%emt 0:00:06]} 54. Bxd6 {[%emt 0:00:00]} Kd8 {[%emt 0:00:17]} 55. Bg6 {[%emt 0:00:00]} Kc8 {[%emt 0:00:52]} 56. Bxh5 {[%emt 0:00:00]} Kd8 {[%emt 0:00:02]} 57. c4 {[%emt 0:00:00] White threatens Bf7 and mate.} Nb6 {[%emt 0:00:05]} 58. Bg4 {[%emt 0:00:00] White mates.} Ke8 {[%emt 0:00:22]} 59. Bc5 {[%emt 0:00:00]} Nd7 {[%emt 0:00:12]} 60. Bxd7+ {[%emt 0:00:00] Weighted Error Value: White=0.07 (flawless) /Black=0.78} 1-0

[Event "31st MPL National U18 Chess-ch 2022"]
[Site "Pollachi"]
[Date "2022.04.22"]
[Round "9.2"]
[White "Ilamparthi A R"]
[Black "Srihari L R"]
[Result "0-1"]
[ECO "A30"]
[WhiteElo "1969"]
[BlackElo "2400"]
[Annotator "TA"]
[PlyCount "82"]
[EventDate "2022.04.18"]
[EventCountry "IND"]
[SourceTitle "playchess.com"]
[Source "ChessBase"]
[SourceQuality "1"]
[TimeControl "5400+30"]

{[%evp 17,82,31,33,18,24,16,25,22,62,68,83,49,51,56,71,66,60,64,92,50,44,10,39,38,37,30,32,22,22,25,35,37,47,0,0,-10,0,-39,-42,-25,-53,-64,-61,-65,-43,-42,-42,-25,-27,-118,-81,-688,-656,-640,-627,-1947,-2039,-1823,-1784,-1520,-1478,-29990,-29991,-29991,-29990,-29990,-29991]} 1. Nf3 {[%emt 0:00:07]} Nf6 {[%emt 0:00:35]} 2. c4 {[%emt 0:00:11]} e6 {[%emt 0:01:15]} 3. e3 {[%emt 0:00:55]} b6 {[%emt 0:01:23]} 4. Be2 {[%emt 0:01:40]} Bb7 {[%emt 0:00:16]} 5. b3 {[%emt 0:00:54]} Be7 {[%emt 0:05:21]} 6. Bb2 {[%emt 0:01:44]} O-O {[%emt 0:00:39]} 7. O-O {[%emt 0:01:07]} c5 {[%emt 0:04:32]} 8. d4 {[%emt 0:01:51]} d6 {[%emt 0:00:12]} 9. Nc3 {[%emt 0:00:54]} a6 {[%emt 0:00:44]} 10. Rc1 {[%emt 0:05:17] A30: Symmetrical English: Double Fianchetto and Hedgehog.} Nbd7 {[%emt 0:00:25]} 11. Qc2 {[%emt 0:06:36]} Rc8 {[%emt 0:01:01]} 12. Rfd1 {[%emt 0:00:40] White has an edge.} Rc7 {[%emt 0:04:24]} 13. d5 {[%emt 0:05:19] [#]} e5 $146 {[%emt 0:03:57]} ({Predecessor:} 13... exd5 14. cxd5 b5 15. e4 Re8 16. a4 b4 17. Nb1 Bf8 18. Bd3 c4 19. bxc4 Nc5 {1-0 (35) Gausel,E (2520)-Hillarp Persson,T (2400) Stockholm 1996}) 14. Ne1 {[%emt 0:02:48]} Ne8 {[%emt 0:01:37]} 15. g4 {[%emt 0:07:12]} g6 {[%emt 0:03:57]} 16. Ng2 {[%emt 0:07:29]} Ng7 {[%emt 1:08:12]} 17. f4 {[%emt 0:04:38]} Bc8 {[%emt 0:00:00]} 18. Ne4 {[%emt 0:15:57]} f5 {[%emt 0:00:00]} 19. gxf5 {[%emt 0:05:07]} gxf5 {[%emt 0:00:00]} 20. Ng3 {[%emt 0:00:48]} Bf6 {[%emt 0:00:00]} 21. Kh1 {[%emt 0:04:05]} ({Don't play} 21. Nxf5 Nxf5 22. Qxf5 exf4 23. Bxf6 (23. Nxf4 $2 Bxb2 24. Qe6+ Kh8 $19) (23. Bd3 $2 Ne5 $19) 23... Nxf6 $15) 21... exf4 {[%emt 0:00:00]} 22. Nxf4 {[%emt 0:00:18]} Bxb2 {[%emt 0:00:00]} 23. Qxb2 {[%emt 0:00:01]} Qf6 {[%emt 0:00:00]} 24. Qd2 {[%emt 0:02:48]} Ne5 {[%emt 0:00:00]} 25. Ngh5 {[%emt 0:02:34]} (25. Rg1 $14) 25... Nxh5 $11 {[%emt 0:00:00]} 26. Nxh5 {[%emt 0:00:13]} Qh6 {[%emt 0:00:00]} 27. Rg1+ {[%emt 0:01:12]} Ng4 {[%emt 0:00:00]} 28. Bxg4 {[%emt 0:00:08]} fxg4 {[%emt 0:00:00][%cal Bf5g4,Bg4h3,Bh3h2][%mdl 32]} 29. Nf4 {[%emt 0:01:15]} Rg7 {[%emt 0:00:00] [#] Threatens to win with ...g3.} 30. Rg3 {[%emt 0:01:00]} Rf5 {[%emt 0:01:33]} 31. Rcg1 {[%emt 0:04:27]} Re5 {[%emt 0:00:17]} 32. h3 {[%emt 0:01:56]} Reg5 {[%emt 0:00:19][%cal Rg4h3]} 33. e4 {[%emt 0:03:25]} (33. Ne6 $1 $11 Bxe6 34. dxe6 Qxe6 35. Rxg4 Rxg4 36. Rxg4) 33... gxh3 $17 {[%emt 0:00:59]} 34. Ne2 {[%emt 0:02:14][%mdl 8192] [#] Loses the game.} (34. Rxg5 $17 Rxg5 35. Qf2) 34... h2 $19 {[%emt 0:01:08]} 35. Rf1 {[%emt 0:00:07]} Qh4 {[%emt 0:00:43]} 36. Rxg5 {[%emt 0:05:05]} Qxe4+ {[%emt 0:00:09]} ({Worse is} 36... Rxg5 37. Qf4 Qxf4 38. Rxf4 $15) 37. Kxh2 {[%emt 0:00:02]} Qh4+ {[%emt 0:00:06]} 38. Kg2 {[%emt 0:00:06]} Rxg5+ {[%emt 0:00:21]} 39. Kf3 {[%emt 0:00:05]} Bg4+ {[%emt 0:00:16] Black mates.} 40. Ke3 {[%emt 0:00:10]} Re5+ {[%emt 0:00:05]} 41. Kd3 {[%emt 0:00:06]} Bxe2+ {[%emt 0:00:05] Weighted Error Value: White=0.65/Black=0.06 (flawless)} 0-1